Cogmind - Beta 13 @@@ ROGUE MODE // 2024.04.03 @ 19:54:09 Player: Baxter Result: Destroyed by WR-HYA(R) with Subdweller Machine Gun Performance ------------- Evolutions (0) 0 Regions Visited (3) 600 Robots Destroyed (34) 170 Value Destroyed (745) 745 Prototype IDs (1) 20 Alien Tech Used (0) 0 Bonus (0) 0 TOTAL SCORE: 1535 Bonus ------- None Cogmind --------- Core Integrity 0/250 Matter 252/300 Energy 250/250 System Corruption 3% Temperature Cool (0) Movement Treading (260) Ox1 Location -10/Subcaves Parts ------- > --- POWER (1) -------- Ion Engine > --- PROPULSION (2) --- Spiked Treads Spiked Treads > --- UTILITY (2) ------ High-capacity Storage Unit Makeshift Kinetic Plating > --- WEAPON (2) ------- Grenade Launcher (fused) Makeshift Axe > --- INVENTORY (20) --- Light Ion Engine Light Ion Engine Wheel Wheel Wheel Large Matter Pod (150) Structural Scanner Seismic Detector Cobbler Unit Riot Gun Improved Assault Rifle Improved Assault Rifle Makeshift Shrapnel Gun Grenade Launcher Explosive Trap Explosive Trap Explosive Trap Explosive Trap Peak State ------------ > --- POWER ------------ Ion Engine > --- PROPULSION ------- Spiked Treads Spiked Treads > --- UTILITY ---------- High-capacity Storage Unit Makeshift Kinetic Plating > --- WEAPON ----------- Grenade Launcher Makeshift Axe > --- INVENTORY -------- Light Ion Engine Light Ion Engine Wheel Wheel Wheel Large Matter Pod Structural Scanner Seismic Detector Cobbler Unit Riot Gun Improved Assault Rifle Improved Assault Rifle Makeshift Shrapnel Gun Grenade Launcher Explosive Trap Explosive Trap Explosive Trap Explosive Trap Explosive Trap [Rating: 18] Favorites ----------- Power Ion Engine Engine Ion Engine Power Core Light Nuclear Core Propulsion Light Treads Treads Light Treads Wheel Wheel Utility High-capacity Storage Unit Device Seismic Detector Storage High-capacity Storage Unit Protection Makeshift Kinetic Plating Weapon Improved Assault Rifle Energy Gun Riot Gun Ballistic Gun Improved Assault Rifle Ballistic Cannon Battle Cannon Launcher Grenade Launcher Slashing Weapon Makeshift Axe Build | -11 -10 -10 -10 ------- Run | Yrd Mat Min Sub Slots Evolved . | . . . . Power . | . . . . Propulsion . | . . . . Utility . | . . . . Weapon . | . . . . Parts Attached 36 | 7 8 2 19 Power 4 | 1 1 . 2 Engine 3 | 1 . . 2 Core 1 | . 1 . . Reactor . | . . . . Propulsion 9 | 2 . 2 5 Treads 7 | 1 . 1 5 Leg . | . . . . Wheel 2 | 1 . 1 . Hover . | . . . . Flight . | . . . . Utility 11 | 2 3 . 6 Device 4 | 1 1 . 2 Storage 3 | 1 2 . . Processor . | . . . . Hackware . | . . . . Protection 4 | . . . 4 Artifact . | . . . . Weapon 12 | 2 4 . 6 Energy Gun 2 | 1 . . 1 Energy Cannon . | . . . . Ballistic Gun 6 | 1 4 . 1 Ballistic Cannon 1 | . . . 1 Launcher 1 | . . . 1 Special Weapon . | . . . . Impact Weapon . | . . . . Slashing Weapon 2 | . . . 2 Piercing Weapon . | . . . . Special Melee Weapon . | . . . . Unidentified Prototypes 1 | . 1 . . Parts Lost 5 | . 4 . 1 Power 2 | . 1 . 1 Propulsion . | . . . . Utility 1 | . 1 . . Weapon 2 | . 2 . . Highest Loss Streak 3 | . 3 . 1 To Critical Strikes . | . . . . Average Slot Usage (%) 99 | . 96 100 99 Engine 7 | . 7 . 9 Core 6 | . 6 14 4 Treads 22 | . 14 14 27 Wheel 5 | . 14 14 . Device 6 | . 11 14 2 Storage 14 | . 14 14 14 Protection 7 | . . . 11 Ballistic Gun 13 | . 27 28 5 Launcher 6 | . . . 10 Slashing Weapon 6 | . . . 10 Naked Turns . | . . . . Heaviest Build 58 | 15 52 52 58 Greatest Support 40 | 20 20 16 40 Greatest Overweight (x) 5 | . 5 5 3 Average Overweight (x) 1 | . 2 3 1 Largest Inventory Capacity 20 | 8 20 20 20 Average Capacity 18 | 7 14 20 20 Most Carried 20 | 7 16 20 20 Average Carried 18 | 4 13 19 19 Final Capacity 20 | 8 20 20 20 Final Carried 20 | 7 16 20 19 Class Distribution -------------------- 84% | Mutant 15% | Derelict-Mutant Dominant Class ---------------- Mutant | -10/Materials Mutant | -10/Mines Mutant | -10/Subcaves Resources | -11 -10 -10 -10 ----------- Run | Yrd Mat Min Sub Matter Collected 1468 | 132 586 232 518 Remotely . | . . . . Salvage Created 1361 | 40 688 134 499 Parts 87 | 5 42 8 32 Haulers Intercepted 2 | . 2 . . Recyclers Shooed 3 | 1 . 2 . Parts Field Recycled . | . . . . Retrieved Matter . | . . . . Parts Self-Destructed 5 | . . . 5 Prevented . | . . . . Kills | -11 -10 -10 -10 ------- Run | Yrd Mat Min Sub Combat Hostiles Destroyed 20 | . 10 1 9 Guns 15 | . 10 1 4 AOE 5 | . . . 5 Classes Destroyed 10 | 1 7 . 2 Builder 3 | . 2 1 . Tunneler 3 | 2 . 1 . Hauler 2 | . 2 . . Recycler 3 | . 2 1 . Operator 1 | . 1 . . Watcher 2 | . 2 . . Swarmer 5 | . 3 1 1 Grunt 7 | . 7 . . Sentry 1 | . . . 1 Subdweller 7 | . . . 7 Best Kill Streak 4 | 2 4 2 2 Combat Bots Only 3 | . 3 1 2 Max Kills in Single Turn 1 | 1 1 1 1 Gunslinging . | . . . . Exploded 1 | . . . 1 Melee . | . . . . Uniques/NPCs Destroyed . | . . . . Combat | -11 -10 -10 -10 -------- Run | Yrd Mat Min Sub Hostile Shots Fired 132 | . 70 4 58 Missed 33 | . 15 . 18 Damage Taken 1555 | . 672 33 850 Core 263 | . 83 . 180 Absorbed by Shields . | . . . . Ignored by Resistances 7 | . . . 7 Core Remaining (%) 100 | 100 . . . Volleys Fired 108 | 7 59 10 32 Largest 2 | 2 2 2 2 Hottest 70 | 70 46 46 46 Shots Fired 190 | 14 105 21 50 Gun 171 | 14 105 21 31 Cannon . | . . . . Launcher 19 | . . . 19 Special . | . . . . Kinetic 164 | 7 105 21 31 Thermal 7 | 7 . . . Explosive 19 | . . . 19 Electromagnetic . | . . . . Robot Hit Streak 22 | 4 13 7 22 Robot Miss Streak 3 | 2 3 1 2 Penetration Max . | . . . . Secondary Targets . | . . . . Shots Hit Robots 137 | 8 72 13 44 Core Hits 55 | 2 28 5 20 Critical Kills . | . . . . Critical Parts Destroyed . | . . . . Critical Strikes . | . . . . Melee Attacks 32 | . . . 32 Impact . | . . . . Slashing 32 | . . . 32 Piercing . | . . . . Sneak Attacks . | . . . . Combat Hostiles . | . . . . Follow-up Attacks . | . . . . Damage Inflicted 2607 | 101 1038 182 1286 Guns 1703 | 101 1036 182 384 Cannons . | . . . . Explosions 420 | . . . 420 Melee 482 | . . . 482 Ramming 2 | . 2 . . Kinetic 1628 | 26 1036 182 384 Thermal 75 | 75 . . . Explosive 420 | . . . 420 Electromagnetic . | . . . . Impact . | . . . . Slashing 482 | . . . 482 Piercing . | . . . . Highest Corruption 3 | . 3 3 3 Average Corruption 2 | . 2 3 3 Corruption Purged . | . . . . Corruption Blocked . | . . . . Effects 81 | . 2 9 70 Message Errors 22 | . . 1 21 Matter Fused 19 | . 2 4 13 Heat Flow Errors 8 | . . 2 6 Energy Discharges 12 | . . 1 11 Parts Fused 1 | . . . 1 Data Loss (minor) 7 | . . . 7 Data Loss (major) 3 | . . . 3 Misfires 5 | . . 1 4 Alerts 3 | . . . 3 Weapon Failures 1 | . . . 1 Overload Shots . | . . . . Overflow Damage . | . . . . Projectiles . | . . . . Explosions . | . . . . Melee . | . . . . Knockbacks . | . . . . Impact . | . . . . Kinetic . | . . . . Secondary . | . . . . Self-Inflicted Damage 138 | . . . 138 Shots 7 | . . . 7 Rammed . | . . . . Targets Rammed 1 | . 1 . . Kicked . | . . . . Crushed 1 | . 1 . . Highest Temperature 277 | 27 18 277 221 Average Temperature 62 | 11 7 135 78 Received Heat Transfer 420 | . 339 . 81 Siege Activations . | . . . . Robots Corrupted . | . . . . Combat Hostiles . | . . . . Parts Fried . | . . . . Impact Corruptions . | . . . . Robots Melted . | . . . . Combat Hostiles . | . . . . Parts Melted . | . . . . Heat Transferred 222 | 222 . . . Parts Sabotaged . | . . . . Parts Stolen . | . . . . Parts Stripped . | . . . . Power Chain Reactions . | . . . . Alert | -11 -10 -10 -10 ------- Run | Yrd Mat Min Sub Peak Influence 130 | 10 130 84 . Initial 9 | . 6 9 . Average 37 | 3 50 19 . Maximum Alert Level . | . . . . Low Security (%) 100 | 100 100 100 . Level 1 . | . . . . Level 2 . | . . . . Level 3 . | . . . . Level 4 . | . . . . Level 5 . | . . . . High Security . | . . . . Max Security . | . . . . Squads Dispatched 1 | . 1 . . Investigation . | . . . . Extermination . | . . . . Reinforcement 1 | . 1 . . Assault . | . . . . Garrison . | . . . . Intercept . | . . . . Searches Triggered . | . . . . Construction Impeded . | . . . . Haulers Reinforced . | . . . . Active Scanning Responses . | . . . . Cargo Convoy Interrupts . | . . . . Stealth | -11 -10 -10 -10 --------- Run | Yrd Mat Min Sub Distress Signals 2 | . 2 . . Communications Jammed . | . . . . Distress Signals . | . . . . Times Spotted 38 | . 22 3 13 Peak Tracking Total 4 | . 4 3 2 Tactical Retreats 1 | . . 1 . Traps | -11 -10 -10 -10 ------- Run | Yrd Mat Min Sub Traps Triggered 3 | . 2 . 1 Indirectly . | . . . . Trap Hack Attempts . | . . . . Triggered . | . . . . Disarmed . | . . . . Reprogrammed . | . . . . Reused . | . . . . Traps Extracted . | . . . . Installed 1 | . . . 1 Triggered . | . . . . Most Traps Carried 5 | . . 5 5 Machines | -11 -10 -10 -10 ---------- Run | Yrd Mat Min Sub Machines Disabled . | . . . . Max in Single Turn . | . . . . Machines Repaired . | . . . . Machines Dismantled . | . . . . Machines Sabotaged . | . . . . Overloaded Fab Kills . | . . . . Hacking | -11 -10 -10 -10 --------- Run | Yrd Mat Min Sub Machines Accessed 8 | . 7 . 1 Terminals 7 | . 7 . . Fabricators . | . . . . Repair Stations . | . . . . Recycling Units . | . . . . Scanalyzers . | . . . . Garrison Access . | . . . . Total Hacks 24 | . 21 . 3 Successful 12 | . 9 . 3 Failed 11 | . 11 . . Catastrophic 1 | . 1 . . Database Lockouts 1 | . 1 . . Manual 17 | . 17 . . Terminals 21 | . 21 . . Fabricators . | . . . . Repair Stations . | . . . . Recycling Units . | . . . . Scanalyzers . | . . . . Garrison Access . | . . . . Terminal Hacks 6 | . 3 . 3 Record 3 | . . . 3 Robot Analysis 1 | . 1 . . Transport Status 2 | . 2 . . Fabricator Hacks . | . . . . Repair Station Hacks . | . . . . Recycling Unit Hacks . | . . . . Scanalyzer . | . . . . Garrison Access Hacks . | . . . . Unauthorized Hacks 6 | . 6 . . Terminals 6 | . 6 . . Assimilate 1 | . 1 . . Botnet 5 | . 5 . . Fabricators . | . . . . Repair Stations . | . . . . Recycling Units . | . . . . Scanalyzers . | . . . . Garrison Access . | . . . . Data Cores Recovered . | . . . . Used . | . . . . Hacking Detections 6 | . 6 . . Full Trace Events . | . . . . Feedback Events . | . . . . Feedback Blocked . | . . . . Robot Schematics Acquired . | . . . . Robots Built . | . . . . Authchips . | . . . . Time . | . . . . Total Robot Build Rating . | . . . . Part Schematics Acquired . | . . . . Parts Built . | . . . . Authchips . | . . . . Time . | . . . . Total Part Build Rating . | . . . . Parts Repaired . | . . . . Time . | . . . . Parts Recycled . | . . . . Recycled Matter . | . . . . Retrieved Matter . | . . . . Retrieved Components . | . . . . Parts Scanalyzed . | . . . . Part Schematics Acquired . | . . . . Parts Damaged . | . . . . Bothacking | -11 -10 -10 -10 ------------ Run | Yrd Mat Min Sub Used RIF Installer . | . . . . Robots Hacked . | . . . . Non-combat . | . . . . Combat . | . . . . Robot Hacks Applied . | . . . . Relay Couplers Released . | . . . . Fabnet Peak Effective % . | . . . . Robots Rewired . | . . . . Allies Hacked . | . . . . Hacks Repelled . | . . . . Allies | -11 -10 -10 -10 -------- Run | Yrd Mat Min Sub Total Allies . | . . . . Largest Group . | . . . . Highest-Rated Group . | . . . . Highest-Rated Ally . | . . . . Total Orders . | . . . . Ally Attacks . | . . . . Total Damage . | . . . . Kills . | . . . . Allies Corrupted . | . . . . Allies Melted . | . . . . Intel | -11 -10 -10 -10 ------- Run | Yrd Mat Min Sub Robot Analysis Total 1 | . 1 . . Derelict Logs Recovered 3 | . . 1 2 Drone Launches . | . . . . Drone Recoveries . | . . . . Exploration | -11 -10 -10 -10 ------------- Run | Yrd Mat Min Sub Turns Passed 5932 | 108 1368 764 3692 Spaces Moved 2653 | 48 704 492 1409 Core 2 | 2 . . . Treads 1680 | 41 267 . 1372 Legs . | . . . . Wheels 971 | 5 437 492 37 Hover . | . . . . Flight . | . . . . Fastest Speed 50 | 50 125 145 145 Average Speed 205 | 147 164 145 248 Slowest Speed 360 | 160 240 155 360 Overloaded Moves . | . . . . Propulsion Burnouts . | . . . . Robots Hopped . | . . . . Cave-ins Triggered . | . . . . Exploration Rate (%) 63 | 4 91 84 75 Regions Visited 3 Branch Regions 2 Pre-discovered Areas 1 | . . . 1 Known Exits Taken 1 | . . 1 . Unknown Exits Taken 2 | 1 1 . . Scrap Searched 8 | . . 1 7 Spaces Dug 8 | . . . 8 Terrain Destroyed 62 | . . . 62 Melee 1 | . . . 1 Projectile . | . . . . AOE 61 | . . . 61 Terrain Rammed . | . . . . Walls Destroyed . | . . . . Machines Disabled . | . . . . Actions | -11 -10 -10 -10 --------- Run | Yrd Mat Min Sub Total 2923 | 68 806 522 1527 Wait 25 | . 13 . 12 Move 2650 | 47 703 491 1409 Hop . | . . . . Pick Up 41 | 7 15 11 8 Fast Attach 12 | 7 3 . 2 Attach 4 | . 2 . 2 Detach . | . . . . Swap 20 | . 3 2 15 Drop 29 | . 7 8 14 Fire 108 | 7 59 10 32 Melee 32 | . . . 32 Ram . | . . . . Kick . | . . . . Crush 1 | . 1 . . Escape Stasis . | . . . . Rewire . | . . . . Trap 1 | . . . 1 Miscellaneous . | . . . . Route ------- -11/Scrapyard -10/Materials (discovered 3 exits: [*Mat x2] / [*Min]) -10/Mines (discovered 3 exits: [*Mat x2] / *Sub) -10/Subcaves History --------- Turn | Location | Event 23 | -11/Scrapyard | Discovered new exit (range 16) 109 | -11/Scrapyard | Entered Materials 311 | -10/Materials | Build established: Mutant 847 | -10/Materials | Lost 3 parts (1p1u1w) 1022 | -10/Materials | Discovered new exit (range 13) 1224 | -10/Materials | Central database locked down 1318 | -10/Materials | Discovered new exit (range 16) 1406 | -10/Materials | Discovered new exit (range 16) 1477 | -10/Materials | Entered Mines 1495 | -10/Mines | YI-UF0 nonchalantly dropped a Grenade Launcher on the ground 1580 | -10/Mines | Discovered new exit (range 10) 1792 | -10/Mines | Identified exit to Subcaves 1854 | -10/Mines | Found a hidden stash of uninstalled traps 1986 | -10/Mines | Discovered new exit (range 14) 2241 | -10/Mines | Entered Subcaves 2252 | -10/Subcaves | Learned Materials security intel 2653 | -10/Subcaves | Core integrity fell below 50% 2784 | -10/Subcaves | Disturbed a concealed Subdweller 3338 | -10/Subcaves | Visited Clippyterm 3550 | -10/Subcaves | Learned 4 Materials zone layouts 3841 | -10/Subcaves | Shifting Twisted Machinery released Mak. Kinetic Plating 3964 | -10/Subcaves | Shifting Twisted Machinery released Flamer 4278 | -10/Subcaves | Core integrity fell below 20% 4781 | -10/Subcaves | Learned location of Zion (-6) 4781 | -10/Subcaves | Met a Zionite searching for "candidates" 5284 | -10/Subcaves | Build established: Derelict-Mutant 5383 | -10/Subcaves | A swath of the cavern ceiling suddenly collapsed 5786 | -10/Subcaves | Shifting Twisted Machinery released Sub. Laser 5933 | -10/Subcaves | Destroyed by WR-HYA(R) with Subdweller Machine Gun Last Messages --------------- 05519_ Found Sub. Beam Cannon. 05519_ Found Piercing Trap. 05519_ Found 17 Matter. 05520_ Acquired 17 matter. 05529_ System corrupted: FCS attempts to trigger Grenade Launcher. 05529_ System corrupted: Grenade Launcher misfires. 05564_ System corrupted: Component data lost. 05624_ M>ZASIKL0GH> L3<9D<:YMM 05670_ 7<#O|M42AOQA|M2YG%Z6KG70OEW1